bitfinex/quotes_BTCUSD_20250709
["timestamp","ask_amount","ask_price","bid_price","bid_amount"]
[1752084869025,1.17431356,109610.0,109600.0,1.10004647]
[1752084870963,0.82413935,109610.0,109600.0,1.10004647]
[1752084871171,1.52448777,109610.0,109600.0,1.10004647]
[1752084871710,1.56550585,109610.0,109600.0,1.10004647]
[1752084873374,1.21533164,109610.0,109600.0,1.10004647]
[1752084874056,0.92474242,109610.0,109600.0,1.10004647]
[1752084874275,1.27491663,109610.0,109600.0,1.10004647]
[1752084874712,1.08287663,109610.0,109600.0,1.10004647]
[1752084874917,1.27491663,109610.0,109600.0,1.10004647]
[1752084877528,1.27475663,109610.0,109600.0,1.10004647]
[1752084877749,1.36619356,109610.0,109600.0,1.10004647]
[1752084878203,1.06601935,109610.0,109600.0,1.09091067]
[1752084878426,1.41619356,109610.0,109600.0,1.09091067]
[1752084878667,1.41619356,109610.0,109600.0,1.08177487]
[1752084878872,1.41619356,109610.0,109600.0,1.07263907]
[1752084878873,1.32475663,109610.0,109600.0,1.07263907]
[1752084879315,1.32475663,109610.0,109600.0,1.06350327]
[1752084879558,1.36475663,109610.0,109600.0,1.06350327]
[1752084879780,1.36475663,109610.0,109600.0,1.05436747]
[1752084879994,1.45619356,109610.0,109600.0,1.05436747]
[1752084880209,1.45619356,109610.0,109600.0,1.04523167]
[1752084880625,1.45619356,109610.0,109600.0,1.03609587]
[1752084881533,1.40619356,109610.0,109600.0,1.03609587]
[1752084883965,1.05601935,109610.0,109600.0,1.03609587]
[1752084884179,1.31475663,109610.0,109600.0,1.03609587]
[1752084885831,0.96458242,109610.0,109600.0,1.03609587]
[1752084886053,1.31475663,109610.0,109600.0,1.03609587]
[1752084886781,1.07693578,109610.0,109600.0,1.04137587]
[1752084886961,1.35981271,109610.0,109600.0,1.04137587]
[1752084887582,1.35965271,109610.0,109600.0,1.04137587]
[1752084887899,1.0094785,109610.0,109600.0,1.04137587]
[1752084888072,1.35965271,109610.0,109600.0,1.04137587]
[1752084889401,1.35965271,109610.0,109600.0,1.05757587]
[1752084889631,1.16837271,109610.0,109600.0,1.05757587]
[1752084889843,0.66652511,109610.0,109600.0,1.07317587]
[1752084890050,0.23508818,109610.0,109600.0,1.07317587]
[1752084890250,0.42620818,109610.0,109600.0,1.07317587]
[1752084892000,0.42620818,109610.0,109600.0,1.26429587]
[1752084892199,0.51764511,109610.0,109600.0,1.26429587]
[1752084892484,0.32652511,109610.0,109600.0,1.07317587]
[1752084892639,0.77626239,109610.0,109600.0,1.26417587]
[1752084893220,0.42608818,109610.0,109600.0,1.26417587]
[1752084893427,0.77626239,109610.0,109600.0,1.26417587]
[1752084894456,0.42608818,109610.0,109600.0,1.07317587]
[1752084894669,0.77626239,109610.0,109600.0,1.07317587]
[1752084895085,0.51752511,109610.0,109600.0,1.07317587]
[1752084895321,0.86769932,109610.0,109600.0,1.07317587]
[1752084895533,0.51752511,109610.0,109600.0,1.07317587]
[1752084895869,0.86769932,109610.0,109600.0,1.07317587]
[1752084899621,0.51752511,109610.0,109600.0,1.07317587]
[1752084899796,0.86769932,109610.0,109600.0,1.07317587]
[1752084900450,0.42608818,109610.0,109600.0,1.07317587]
[1752084900660,0.77626239,109610.0,109600.0,1.07317587]
[1752084902197,0.77626239,109610.0,109600.0,1.06789587]
[1752084902416,0.58526239,109610.0,109600.0,1.07317587]
[1752084902634,0.77570239,109610.0,109600.0,1.07317587]
[1752084902852,0.86713932,109610.0,109600.0,1.07317587]
[1752084903525,0.67669932,109610.0,109600.0,1.07317587]
[1752084903782,0.51684511,109610.0,109600.0,1.07317587]
[1752084903996,0.86701932,109610.0,109600.0,1.07317587]
[1752084906093,0.51684511,109610.0,109600.0,1.07317587]
[1752084906303,0.86701932,109610.0,109600.0,1.07317587]
[1752084907735,0.86701932,109610.0,109600.0,1.04132587]
[1752084910293,0.51684511,109610.0,109600.0,1.04132587]
[1752084910495,0.86701932,109610.0,109600.0,1.04132587]
[1752084911365,0.51684511,109610.0,109600.0,1.04124587]
[1752084911580,0.23508818,109610.0,109600.0,1.07354587]
[1752084911797,0.42476818,109610.0,109600.0,1.07354587]
[1752084912438,0.77494239,109610.0,109600.0,1.07354587]
[1752084912651,0.42476818,109610.0,109600.0,1.07354587]
[1752084912865,0.83566405,109610.0,109600.0,1.07354587]
[1752084913824,0.83566405,109610.0,109600.0,1.26322587]
[1752084914036,0.29580984,109610.0,109600.0,1.26322587]
[1752084914254,0.83550405,109610.0,109600.0,1.26322587]
[1752084915973,0.83550405,109610.0,109600.0,1.07354587]
[1752084916187,0.42444818,109610.0,109600.0,1.44554762]
[1752084916390,0.4158251,109610.0,109600.0,1.26306587]
[1752084916619,0.2264651,109610.0,109600.0,1.44554762]
[1752084916845,0.2264651,109610.0,109600.0,1.47291895]
[1752084917039,0.24471101,109610.0,109600.0,1.47291912]
[1752084917338,0.24471101,109610.0,109600.0,1.46379537]
[1752084917562,0.26295743,109610.0,109600.0,1.46379537]
[1752084917782,0.2538346,109610.0,109600.0,1.46379537]
[1752084917998,0.2950071,109610.0,109600.0,1.46379554]
[1752084918209,0.2940071,109610.0,109600.0,1.46379554]
[1752084918422,0.2940071,109610.0,109600.0,1.47291937]
[1752084918613,0.2910071,109610.0,109600.0,1.47291937]
[1752084919037,0.28288393,109610.0,109600.0,1.45467162]
[1752084919251,0.27376068,109610.0,109600.0,1.07354587]
[1752084919476,0.62593489,109610.0,109600.0,1.26266587]
[1752084920576,0.27576068,109610.0,109600.0,1.26266587]
[1752084921141,0.27576068,109610.0,109600.0,1.44514762]
[1752084921578,0.27576068,109610.0,109600.0,1.26266587]
[1752084922470,0.2254651,109610.0,109600.0,1.4542717]
[1752084922718,0.2254651,109610.0,109600.0,1.26266587]
[1752084922934,0.57563931,109610.0,109600.0,1.26266587]
[1752084924044,0.2254651,109610.0,109600.0,1.26266587]
[1752084924321,0.57563931,109610.0,109600.0,1.26266587]
[1752084924547,0.66707624,109610.0,109600.0,1.26266587]
[1752084927644,0.66707624,109610.0,109600.0,1.05764587]
[1752084927862,0.66707624,109610.0,109600.0,1.24616587]
[1752084928702,0.66707624,109610.0,109600.0,1.05764587]
[1752084928874,0.66707624,109610.0,109600.0,1.04124587]
[1752084929378,0.66707624,109610.0,109600.0,1.22968587]
[1752084929613,0.31690203,109610.0,109600.0,1.22968587]
[1752084929837,0.2254651,109610.0,109600.0,1.22968587]
[1752084930057,0.57563931,109610.0,109600.0,1.22968587]
[1752084930524,0.2254651,109610.0,109600.0,1.22968587]
[1752084930752,0.57563931,109610.0,109600.0,1.22968587]
[1752084930980,0.31690203,109610.0,109600.0,1.22968587]
[1752084931200,0.66707624,109610.0,109600.0,1.22968587]
[1752084931427,0.31690203,109610.0,109600.0,1.22968587]
[1752084931644,0.66707624,109610.0,109600.0,1.22968587]
[1752084931878,0.2254651,109610.0,109600.0,1.22968587]
[1752084932096,0.2254651,109610.0,109600.0,1.24538587]
[1752084932483,0.57563931,109610.0,109600.0,1.24538587]
[1752084933370,0.57563931,109610.0,109600.0,1.22968587]
[1752084933602,0.66707624,109610.0,109600.0,1.22968587]
[1752084933882,0.68247624,109610.0,109600.0,1.22655587]
[1752084934100,0.68247624,109610.0,109600.0,1.03811587]
[1752084934327,0.66707624,109610.0,109600.0,1.03811587]
[1752084934539,0.66707624,109610.0,109600.0,1.22615587]
[1752084934740,0.69837624,109610.0,109600.0,1.22409587]
[1752084934951,0.34820203,109610.0,109600.0,1.22409587]
[1752084935152,0.69837624,109610.0,109600.0,1.22409587]
[1752084935363,0.68247624,109610.0,109600.0,1.22611587]
[1752084935566,0.66707624,109610.0,109600.0,1.22924587]
[1752084936218,0.66707624,109610.0,109600.0,1.22599587]
[1752084936435,0.68217624,109610.0,109600.0,1.22599587]
[1752084936633,0.69847624,109610.0,109600.0,1.22397587]
[1752084937668,0.69847624,109610.0,109600.0,1.03609587]
[1752084937869,0.34830203,109610.0,109600.0,1.03609587]
[1752084938289,0.69847624,109610.0,109600.0,1.03609587]
[1752084938849,1.12991317,109610.0,109600.0,1.03609587]
[1752084939063,1.19019554,109610.0,109600.0,1.03609587]
[1752084939495,0.84002133,109610.0,109600.0,1.03609587]
[1752084939695,1.18919554,109610.0,109600.0,1.03609587]
[1752084940126,1.19019554,109610.0,109600.0,1.03609587]
[1752084940591,0.84002133,109610.0,109600.0,1.03609587]
[1752084940808,0.84450203,109610.0,109600.0,1.04119587]
[1752084941015,0.2234651,109610.0,109600.0,1.26005587]
[1752084941669,0.2264651,109610.0,109600.0,1.26005587]
[1752084941914,0.31790203,109610.0,109600.0,1.26005587]
[1752084943384,0.31790203,109610.0,109600.0,1.26917995]
[1752084943608,0.31790203,109610.0,109600.0,1.46078562]
[1752084943609,0.06224584,109610.0,109600.0,1.46078562]
[1752084943821,0.07136876,109610.0,109600.0,1.47903303]
[1752084944061,0.26295711,109610.0,109600.0,1.46990945]
[1752084944272,0.30798808,109610.0,109600.0,1.4790332]
[1752084944475,0.30698808,109610.0,109600.0,1.82920741]
[1752084944694,0.30698808,109610.0,109600.0,1.82008366]
[1752084944897,0.30398808,109610.0,109600.0,1.82008366]
[1752084945101,0.24071152,109610.0,109600.0,1.82008366]
[1752084945334,0.24171152,109610.0,109600.0,1.4516617]
[1752084945551,0.2234651,109610.0,109600.0,1.26005587]
[1752084946234,0.2244651,109610.0,109600.0,1.26005587]
[1752084948672,0.2244651,109610.0,109600.0,1.44253762]
[1752084948889,0.2244651,109610.0,109600.0,1.4516617]
[1752084949320,0.2244651,109610.0,109600.0,1.26005587]
[1752084949533,0.2244651,109610.0,109600.0,1.4516617]
[1752084949758,0.2244651,109610.0,109600.0,1.4607857]
[1752084949977,0.2244651,109610.0,109600.0,1.44253762]
[1752084950399,0.31590203,109610.0,109600.0,1.4516617]
[1752084950615,0.31590203,109610.0,109600.0,1.44253762]
[1752084950820,0.31590203,109610.0,109600.0,1.4516617]
[1752084951247,0.31590203,109610.0,109600.0,1.4607857]
[1752084951475,0.2244651,109610.0,109600.0,1.4607857]
[1752084951777,0.57463931,109610.0,109600.0,1.04119587]
[1752084951979,0.2402651,109610.0,109600.0,1.22795587]
[1752084952186,0.2244651,109610.0,109600.0,1.22795587]
[1752084952406,0.31590203,109610.0,109600.0,1.22795587]
[1752084952618,0.66607624,109610.0,109600.0,1.22795587]
[1752084953254,0.31590203,109610.0,109600.0,1.22795587]
[1752084953470,0.31590203,109610.0,109600.0,1.04119587]
[1752084953676,0.78891317,109610.0,109600.0,1.22281587]
[1752084954721,0.78891317,109610.0,109600.0,1.22467587]
[1752084954929,0.78891317,109610.0,109600.0,1.03815587]
[1752084956004,0.78891317,109610.0,109600.0,1.22463587]
[1752084956420,0.78891317,109610.0,109600.0,1.22257587]
[1752084956625,0.78891317,109610.0,109600.0,1.03609587]
[1752084958348,0.81633417,109610.0,109600.0,1.03609587]
[1752084959229,0.46615996,109610.0,109600.0,1.03609587]
[1752084959488,0.81633417,109610.0,109600.0,1.03609587]
[1752084962096,1.15633417,109610.0,109600.0,1.03609587]
[1752084962342,1.25370998,109610.0,109600.0,1.03609587]
[1752084963519,1.25170998,109610.0,109600.0,1.03609587]
[1752084963726,1.25370998,109610.0,109600.0,1.03609587]
[1752084964597,1.57104923,109610.0,109600.0,0.46864052]
[1752084964875,1.60387681,109610.0,109600.0,0.4595066]
[1752084965092,1.60787681,109610.0,109600.0,0.4595066]
[1752084965312,1.60787681,109610.0,109600.0,0.45037268]
[1752084965526,1.2577026,109610.0,109600.0,0.45037268]
[1752084965741,1.2577026,109610.0,109600.0,0.44123738]
[1752084965968,1.60787681,109610.0,109600.0,0.44123738]
[1752084966202,1.60787681,109610.0,109600.0,0.43210208]
[1752084966422,1.2577026,109610.0,109600.0,0.42296678]
[1752084966643,1.2577026,109610.0,109570.0,0.07841714]
[1752084966644,0.20076596,109580.0,109570.0,0.07841714]
[1752084966853,0.51938083,109580.0,109570.0,0.0784636]
[1752084967074,0.47784289,109580.0,109570.0,0.0784636]
[1752084967291,0.8280171,109580.0,109570.0,0.0784636]
[1752084967518,0.48712735,109580.0,109570.0,0.0784636]
[1752084967736,0.83730156,109580.0,109570.0,0.0784636]
[1752084967960,0.83730156,109580.0,109570.0,4.646e-05]
[1752084968175,0.00912641,109570.0,109560.0,0.0103236]
[1752084968393,0.45073755,109570.0,109560.0,0.0073536]
[1752084969065,0.48163755,109570.0,109560.0,0.0052936]
[1752084969281,0.48163755,109570.0,109560.0,0.0072936]
[1752084969493,0.13146334,109570.0,109560.0,0.0072936]
[1752084969773,0.5234285,109570.0,109560.0,0.0102936]
[1752084970241,0.66703755,109570.0,109560.0,0.0102936]
[1752084970459,0.28592334,109570.0,109560.0,0.0153236]
[1752084970672,0.63609755,109570.0,109560.0,0.0470236]
[1752084970896,0.63609755,109570.0,109560.0,0.0153236]
[1752084971166,0.62697114,109570.0,109560.0,0.0153236]
[1752084971387,0.35266466,109570.0,109560.0,0.0153236]
[1752084971812,0.27679693,109570.0,109560.0,0.0123536]
[1752084972030,0.30829693,109570.0,109560.0,0.0102936]
[1752084972253,0.65847114,109570.0,109560.0,0.0102936]
[1752084975973,0.30829693,109570.0,109560.0,0.0102936]
[1752084976174,0.65847114,109570.0,109560.0,0.0102936]
[1752084976372,0.72398249,109570.0,109560.0,0.0102936]
[1752084976809,1.06398249,109570.0,109560.0,0.0102936]
[1752084977238,1.09141249,109570.0,109560.0,0.0102936]
[1752084980008,1.4415867,109570.0,109560.0,0.0102936]
[1752084980485,0.55587828,109570.0,109560.0,0.0102936]
[1752084980696,0.45886693,109570.0,109560.0,0.0152436]
[1752084980917,0.61603693,109570.0,109560.0,0.0122436]
[1752084981134,0.64346693,109570.0,109560.0,0.0286436]
[1752084981352,0.99364114,109570.0,109560.0,0.0286436]
[1752084981582,1.05764807,109570.0,109560.0,0.0266436]
[1752084981796,1.08507807,109570.0,109560.0,0.0102436]
[1752084982225,1.05764807,109570.0,109560.0,0.0072736]
[1752084982406,1.08507807,109570.0,109560.0,0.0072736]
[1752084982824,1.08607807,109570.0,109560.0,0.0072736]
[1752084983071,0.55130386,109570.0,109560.0,0.0072736]
[1752084983274,1.08591807,109570.0,109560.0,0.0072736]
[1752084983491,1.10191807,109570.0,109560.0,0.0052936]
[1752084983737,0.76814386,109570.0,109560.0,0.0052936]
[1752084983952,1.11831807,109570.0,109560.0,0.0052936]
[1752084984187,1.46849228,109570.0,109560.0,0.0052936]
[1752084985325,1.33405228,109570.0,109560.0,0.0052936]
[1752084985548,1.51833228,109570.0,109560.0,0.0052936]
[1752084985991,1.53287313,109570.0,109560.0,0.0052936]
[1752084986266,1.56560498,109570.0,109560.0,0.0052936]
[1752084986457,0.35017421,109540.0,109530.0,0.0102436]
[1752084986740,0.66379856,109540.0,109530.0,0.10525698]
[1752084986966,0.34552435,109540.0,109530.0,0.0052936]
[1752084987190,0.47351114,109540.0,109530.0,0.0052936]
[1752084987408,0.65763114,109540.0,109530.0,0.0052936]
[1752084987863,0.65763114,109540.0,109530.0,0.01043317]
[1752084988089,0.65763114,109540.0,109530.0,0.00743317]
[1752084988308,0.65763114,109540.0,109530.0,0.00543317]
[1752084988521,0.72339425,109540.0,109530.0,0.00843317]
[1752084988738,0.37322004,109540.0,109530.0,0.01043317]
[1752084988960,0.65763114,109540.0,109530.0,0.01043317]
[1752084989175,0.65763114,109540.0,109530.0,0.00543317]
[1752084989597,0.30745693,109540.0,109530.0,0.00543317]
[1752084989775,0.65763114,109540.0,109530.0,0.00543317]
[1752084990258,0.09143693,109540.0,109530.0,0.04288317]
[1752084990475,0.27531693,109540.0,109530.0,0.04288317]
[1752084991160,0.367435,109560.0,109550.0,0.00495]
[1752084991411,0.61523693,109560.0,109550.0,0.00495]
[1752084991635,0.96541114,109560.0,109550.0,0.00495]
[1752084992505,0.96537114,109560.0,109550.0,0.02145]
[1752084992715,0.61519693,109560.0,109550.0,0.02145]
[1752084992899,0.52287386,109560.0,109550.0,0.00495]
[1752084993128,0.70759386,109560.0,109550.0,0.00495]
[1752084993331,0.52387386,109560.0,109550.0,0.00495]
[1752084993520,1.05768807,109560.0,109550.0,0.00495]
[1752084993937,1.05768807,109560.0,109540.0,0.03567]
[1752084994153,0.62525114,109550.0,109540.0,0.00198]
[1752084994365,0.71660807,109550.0,109540.0,0.00198]
[1752084995224,0.71660807,109550.0,109540.0,0.00495]
[1752084995660,0.27499693,109550.0,109540.0,0.02105]
[1752084995868,0.09143693,109550.0,109540.0,0.03695]
[1752084996083,0.43143693,109550.0,109540.0,0.03695]
[1752084996287,0.61487693,109550.0,109540.0,0.03695]
[1752084996911,0.61487693,109550.0,109540.0,0.03795]
[1752084997115,0.09143693,109560.0,109550.0,0.03695]
[1752084997323,0.40022744,109570.0,109550.0,0.03695]
[1752084997531,0.43143693,109570.0,109560.0,0.02085]
[1752084997754,0.61475693,109570.0,109560.0,0.02085]
[1752084997927,0.61475693,109570.0,109560.0,0.00495]
[1752084998148,0.61475693,109570.0,109560.0,0.00198]
[1752084998347,0.70619386,109570.0,109560.0,0.00198]
[1752084998553,1.05636807,109570.0,109560.0,0.00198]
[1752084998890,0.70819386,109570.0,109560.0,0.00198]
[1752084999959,0.74299659,109570.0,109550.0,0.03452]
[1752085000980,0.18308,109560.0,109550.0,0.03651]
[1752085001185,0.59735566,109560.0,109550.0,0.03651]
[1752085002841,0.52308,109560.0,109550.0,0.03651]
[1752085003048,0.52308,109560.0,109550.0,0.21907503]
[1752085003049,0.70562837,109560.0,109550.0,0.21907503]
[1752085003801,0.52254837,109560.0,109550.0,0.21907503]
[1752085004039,0.70542837,109560.0,109550.0,0.21907503]
[1752085004454,0.70542837,109560.0,109550.0,0.03651]
[1752085004668,0.7968653,109560.0,109550.0,0.03651]
[1752085005321,0.6139853,109560.0,109550.0,0.03651]
[1752085005513,0.7967053,109560.0,109550.0,0.03651]
[1752085005969,0.70518837,109560.0,109550.0,0.03651]
[1752085006187,0.70618837,109560.0,109550.0,0.03651]
[1752085006416,0.01012675,109560.0,109550.0,0.24645876]
[1752085006619,0.01012666,109560.0,109550.0,0.57483524]
[1752085006828,0.01012683,109560.0,109550.0,0.57483524]
[1752085007036,0.001,109560.0,109550.0,0.24645876]
[1752085007255,0.02391642,109560.0,109550.0,0.24645876]
[1752085007467,0.009126,109570.0,109550.0,0.24915104]
[1752085007684,0.31480622,109600.0,109580.0,0.05204141]
[1752085007893,0.4015169,109590.0,109580.0,0.2254308]
[1752085008105,0.08669654,109590.0,109580.0,0.25592687]
[1752085008315,0.08669654,109590.0,109580.0,0.25592696]
[1752085008496,0.02737366,109590.0,109580.0,0.23767638]
[1752085008717,0.03649849,109590.0,109580.0,0.24680188]
[1752085009172,0.21899689,109590.0,109580.0,0.24680188]
[1752085009385,0.21899689,109590.0,109580.0,0.23767638]
[1752085009796,0.20987256,109590.0,109580.0,0.21942505]
[1752085010004,0.26827918,109590.0,109580.0,0.03691]
[1752085010274,0.26827918,109590.0,109580.0,0.18762505]
[1752085010488,0.38306798,109590.0,109580.0,0.23727646]
[1752085010719,0.38306798,109590.0,109580.0,0.22815071]
[1752085010928,0.38406798,109590.0,109580.0,0.21902505]
[1752085011154,0.38406798,109590.0,109580.0,0.03651]
[1752085011373,0.45077072,109590.0,109580.0,0.03651]
[1752085011594,0.45077072,109590.0,109580.0,0.00199]
[1752085012053,0.01825066,109580.0,109570.0,0.24661962]
[1752085012264,0.03650141,109580.0,109570.0,0.26501127]
[1752085012483,0.02737575,109580.0,109570.0,0.26501127]
[1752085012695,0.03650141,109580.0,109570.0,0.26501127]
[1752085012920,0.02737575,109580.0,109570.0,0.26501127]
[1752085013148,0.02737566,109580.0,109570.0,0.26501127]
[1752085013361,0.03650124,109580.0,109570.0,0.26501127]
[1752085013808,0.02737566,109580.0,109570.0,0.26501127]
[1752085014034,0.03650124,109580.0,109570.0,0.26501127]
[1752085014248,0.79581174,109600.0,109590.0,0.2189084]
[1752085014471,0.71360575,109600.0,109590.0,0.22803323]
[1752085014716,0.54024775,109600.0,109590.0,0.23715798]
[1752085014941,0.54020775,109600.0,109590.0,0.23715798]
[1752085015163,0.63767973,109600.0,109590.0,0.24628265]
[1752085015394,0.64680381,109600.0,109590.0,0.22803323]
[1752085015620,0.43928436,109600.0,109590.0,0.24628248]
[1752085015833,0.10128436,109600.0,109590.0,0.25540681]
[1752085016057,0.1950035,109600.0,109590.0,0.24628248]
[1752085016277,0.39569283,109600.0,109590.0,0.2189084]
[1752085016494,0.39569283,109600.0,109590.0,0.22803323]
[1752085016495,0.40481683,109600.0,109590.0,0.22803323]
[1752085016766,0.22233508,109600.0,109590.0,0.24628265]
[1752085016976,0.21321108,109600.0,109590.0,0.23715798]
[1752085017211,0.20408725,109600.0,109590.0,0.23715798]
[1752085017447,0.0131235,109600.0,109590.0,0.2645314]
[1752085017655,0.0131235,109600.0,109590.0,0.25540707]
[1752085017656,0.03137083,109600.0,109590.0,0.25540707]
[1752085017904,0.03849483,109600.0,109590.0,0.24628265]
[1752085018123,0.27746759,109600.0,109590.0,0.2189084]
[1752085018342,0.27746759,109600.0,109590.0,0.22803323]
[1752085018552,0.27746759,109600.0,109590.0,0.22803332]
[1752085018780,0.27746759,109600.0,109590.0,0.23715815]
[1752085018993,0.26834351,109600.0,109590.0,0.23715815]
[1752085019658,0.26834401,109600.0,109590.0,0.2137984]
[1752085019874,0.26834401,109600.0,109590.0,0.2189084]
[1752085020543,0.25922026,109600.0,109590.0,0.2189084]
[1752085020756,0.01924808,109600.0,109590.0,0.2371579]
[1752085020941,0.03749517,109600.0,109590.0,0.2371579]
[1752085021157,0.210853,109600.0,109590.0,0.22803332]
[1752085021387,0.2017295,109600.0,109590.0,0.03641]
[1752085021617,0.2017295,109600.0,109590.0,0.1876084]
[1752085021850,0.29316643,109600.0,109590.0,0.2033084]
[1752085022065,0.28404268,109600.0,109590.0,0.00511]
[1752085022294,0.20074782,109590.0,109580.0,0.40082505]
[1752085022539,0.20074782,109590.0,109580.0,0.22855071]
[1752085022756,0.20074782,109590.0,109580.0,0.21942505]
[1752085022757,0.04936684,109590.0,109580.0,0.21942505]
[1752085022976,0.24099007,109590.0,109580.0,0.2285508]
[1752085023212,0.04936684,109590.0,109580.0,0.2376763]
[1752085023427,0.04936684,109590.0,109580.0,0.2285508]
[1752085023639,0.04936684,109590.0,109580.0,0.23867646]
[1752085023791,0.05849176,109590.0,109580.0,0.24780196]
[1752085023986,0.04936684,109590.0,109580.0,0.24880196]
[1752085024193,0.04936684,109590.0,109580.0,0.25792729]
[1752085024413,0.04936684,109590.0,109580.0,0.24880196]
[1752085024625,0.04936684,109590.0,109580.0,0.25792737]
[1752085024826,0.04024209,109590.0,109580.0,0.2670527]
[1752085025026,0.04024209,109590.0,109580.0,0.25792737]
[1752085025226,0.04024209,109590.0,109580.0,0.2670527]
[1752085026049,0.04936692,109590.0,109580.0,0.25792737]
[1752085026338,0.05849184,109590.0,109580.0,0.24880196]
[1752085026526,0.24099024,109590.0,109580.0,0.22142505]
[1752085026692,0.04024234,109590.0,109580.0,0.40262505]
[1752085026893,0.10056093,109600.0,109590.0,0.1844884]
[1752085027095,0.01824709,109600.0,109590.0,0.24326248]
[1752085027302,0.03649492,109600.0,109590.0,0.24326256]
[1752085027518,0.01824709,109600.0,109590.0,0.24326256]
[1752085027724,0.01824709,109600.0,109590.0,0.25550689]
[1752085027902,0.018247,109600.0,109590.0,0.25550689]
[1752085028290,0.04,109610.0,109600.0,0.25527691]
[1752085028500,0.0491225,109610.0,109600.0,0.25527691]
[1752085028726,0.06736825,109610.0,109600.0,0.24615341]
[1752085028938,0.05824525,109610.0,109600.0,0.25527699]
[1752085029146,0.05824525,109610.0,109600.0,0.26440049]
[1752085029357,0.06736825,109610.0,109600.0,0.26162331]
[1752085029580,0.11551272,109610.0,109600.0,0.23425215]
[1752085029791,0.1246358,109610.0,109600.0,0.244377]
[1752085030021,0.1246358,109610.0,109600.0,0.24437708]
[1752085030237,0.3071009,109610.0,109600.0,0.24437902]
[1752085030464,0.1246358,109610.0,109600.0,0.61526294]
[1752085030702,0.2680796,109610.0,109600.0,0.61526294]
[1752085031373,0.2589571,109610.0,109600.0,0.60613902]
[1752085031593,0.2589571,109610.0,109600.0,0.04364919]
[1752085031812,0.24071143,109610.0,109600.0,0.01046919]
[1752085032068,0.24071143,109610.0,109600.0,0.20528502]
[1752085032282,0.05824583,109610.0,109600.0,0.24650885]
[1752085032515,0.05824541,109610.0,109600.0,0.2647561]
[1752085032736,0.05824533,109610.0,109600.0,0.2647561]
[1752085032938,0.10269794,109610.0,109600.0,0.2647561]
[1752085033165,0.11182077,109610.0,109600.0,0.26475627]
[1752085033383,0.12094385,109610.0,109600.0,0.26475627]
[1752085033610,0.12094385,109610.0,109600.0,0.2556326]
[1752085033841,0.30340962,109610.0,109600.0,0.23738502]
[1752085034060,0.30340962,109610.0,109600.0,0.24650902]
[1752085034491,0.30340962,109610.0,109600.0,0.22826094]
[1752085034797,0.29428687,109610.0,109600.0,0.23738502]
[1752085035241,0.29428687,109610.0,109600.0,0.24650902]
[1752085035451,0.29428687,109610.0,109600.0,0.23738502]
[1752085035657,0.28516404,109610.0,109600.0,0.24650894]
[1752085036096,0.28516404,109610.0,109600.0,0.24650902]
[1752085036497,0.28516404,109610.0,109600.0,0.25563294]
[1752085036842,0.28516404,109610.0,109600.0,0.24650902]
[1752085037011,0.10269836,109610.0,109600.0,0.26475661]
[1752085037224,0.11182094,109610.0,109600.0,0.27388019]
[1752085037423,0.06736833,109610.0,109600.0,0.26475611]
[1752085037748,0.06736833,109610.0,109600.0,0.25563261]
[1752085037971,0.2680796,109610.0,109600.0,0.24650886]
[1752085038188,0.25895702,109610.0,109600.0,0.24650885]
[1752085038402,0.25895702,109610.0,109600.0,0.24650894]
[1752085038610,0.32256457,109610.0,109600.0,0.24650902]
[1752085038821,0.31344174,109610.0,109600.0,0.23738502]
[1752085039035,0.32256499,109610.0,109600.0,0.25563277]
[1752085039250,0.12185314,109610.0,109600.0,0.2738801]
[1752085039460,0.0582455,109610.0,109600.0,0.27387952]
[1752085039780,0.04912267,109610.0,109600.0,0.27387952]
[1752085039982,0.0582455,109610.0,109600.0,0.25563244]
[1752085040473,0.04,109610.0,109600.0,0.25563244]
[1752085040675,0.04912267,109610.0,109600.0,0.26475594]
[1752085040861,0.0582455,109610.0,109600.0,0.26475594]
[1752085041308,0.11176727,109610.0,109600.0,0.26475602]
[1752085041521,0.11176719,109610.0,109600.0,0.27387952]
[1752085041741,0.09352144,109610.0,109600.0,0.27387952]
[1752085042157,0.04,109610.0,109600.0,0.27387952]
[1752085042787,0.04,109610.0,109600.0,0.26753033]
[1752085043001,0.04,109610.0,109600.0,0.27389249]
[1752085045319,0.0491225,109610.0,109600.0,0.27389249]
[1752085045545,0.04,109610.0,109600.0,0.27389249]
[1752085046620,0.0491225,109610.0,109600.0,0.27389249]
[1752085046836,0.05824517,109610.0,109600.0,0.27389249]
[1752085047082,0.0491225,109610.0,109600.0,0.27389249]
[1752085047730,0.04,109610.0,109600.0,0.27389249]
[1752085048851,0.04,109610.0,109600.0,0.70795655]
[1752085049920,0.04,109610.0,109600.0,0.37987027]
[1752085050133,0.04,109610.0,109600.0,0.70795655]
[1752085050348,0.04,109610.0,109600.0,0.70695655]
[1752085050550,0.04,109610.0,109600.0,0.37787027]
[1752085050768,0.04,109610.0,109600.0,0.70795655]
[1752085050989,0.04,109610.0,109600.0,0.69471998]
[1752085051376,0.04,109610.0,109600.0,0.69771998]
[1752085051791,0.04,109610.0,109600.0,0.38287027]
[1752085052537,0.04,109610.0,109600.0,0.69771998]
[1752085054035,0.04,109610.0,109600.0,0.69771518]
[1752085054245,0.04,109610.0,109600.0,0.37753547]
[1752085054451,0.04,109610.0,109600.0,0.69771518]
[1752085056337,0.05818347,109610.0,109600.0,0.32215604]
[1752085056597,0.38215576,109610.0,109600.0,0.43928769]
[1752085056833,0.06730614,109610.0,109600.0,0.42358769]
[1752085057080,0.06730614,109610.0,109600.0,0.42359055]
[1752085057081,0.07642897,109610.0,109600.0,0.42359055]
[1752085057299,0.07642897,109610.0,109600.0,0.41446697]
[1752085057761,0.05824517,109610.0,109600.0,0.41446697]
[1752085058002,0.05824517,109610.0,109600.0,0.41440697]
[1752085058233,0.067368,109610.0,109600.0,0.41440697]
[1752085058477,0.067368,109610.0,109600.0,0.41440868]
[1752085059606,0.067368,109610.0,109600.0,0.40804675]
[1752085059835,0.05824517,109610.0,109600.0,0.40804675]
[1752085060062,0.06736809,109610.0,109600.0,0.40804675]
[1752085060535,0.05824517,109610.0,109600.0,0.40804675]
[1752085060987,0.05824525,109610.0,109600.0,0.40804675]
[1752085061188,0.05824517,109610.0,109600.0,0.40804675]
[1752085061698,0.06736792,109610.0,109600.0,0.40804675]
[1752085062155,0.12524676,109610.0,109600.0,0.40804675]
[1752085062444,0.05824517,109610.0,109600.0,0.40804675]
[1752085062675,0.0491225,109610.0,109600.0,0.40804675]
[1752085062881,0.0491225,109610.0,109600.0,0.42444675]
[1752085063726,0.04,109610.0,109600.0,0.75454646]
[1752085064053,0.04,109610.0,109600.0,0.91491609]
[1752085064262,0.04,109610.0,109600.0,0.60006638]
[1752085064477,0.04,109610.0,109600.0,0.91491609]
[1752085064923,0.04,109610.0,109600.0,0.99624546]
[1752085065967,0.04,109610.0,109600.0,0.68139575]
[1752085066207,0.04,109610.0,109600.0,1.33624546]
[1752085066407,0.04,109610.0,109600.0,1.28185361]
[1752085067241,0.04,109610.0,109600.0,1.20052424]
[1752085067480,0.04,109610.0,109600.0,1.30908693]